[Event "44th Chess Olympiad Open 2022"]
[Site "Chennai"]
[Date "2022.08.05"]
[Round "7.32"]
[White "Kadric, Denis"]
[Black "Saraci, Nderim"]
[Result "1-0"]
[ECO "C54"]
[WhiteElo "2554"]
[BlackElo "2495"]
[Annotator "TA"]
[PlyCount "89"]
[EventDate "2022.07.29"]
[EventType "team-tourn"]
[EventCountry "IND"]
[SourceTitle "playchess.com"]
[Source "ChessBase"]
[SourceQuality "1"]
[WhiteTeam "Montenegro"]
[BlackTeam "Kosovo"]
[WhiteTeamCountry "MNE"]
[BlackTeamCountry "KOS"]
[TimeControl "40/5400+30:1800+30"]

{[%evp 20,89,34,36,37,39,70,68,58,64,62,60,66,60,100,92,147,152,194,194,201,191,198,202,205,203,204,204,279,153,149,170,162,168,162,91,90,98,96,90,108,114,119,50,78,67,79,80,89,73,107,90,344,350,591,406,502,589,660,616,675,728,1017,879,1421,1229,29967,29968,29967,29969,5406,5297]} 1. e4 {[%emt 0:00:03]} e5 {[%emt 0:00:14]} 2. Nf3 {[%emt 0:00:05]} Nc6 {[%emt 0:00:07]} 3. Bc4 {[%emt 0:00:02]} Bc5 {[%emt 0:00:20]} 4. c3 {[%emt 0:00:03]} Nf6 {[%emt 0:00:09]} 5. d3 {[%emt 0:00:01]} O-O {[%emt 0:00:45]} 6. O-O {[%emt 0:00:03]} d6 {[%emt 0:01:16]} 7. Re1 {[%emt 0:00:14]} a6 {[%emt 0:01:47]} 8. Bb3 {[%emt 0:00:30]} Ba7 {[%emt 0:00:10]} 9. h3 {[%emt 0:00:30]} Ne7 {[%emt 0:05:41]} 10. Nbd2 {[%emt 0:04:17]} Ng6 {[%emt 0:01:40]} 11. Nf1 {[%emt 0:00:03]} c6 {[%emt 0:12:16] C54: Giuoco Piano: 4 c3 Nf6, main lines with 5 d4 and 5 d3.} 12. Ng3 {[%emt 0:00:27]} d5 {[%emt 0:11:04]} 13. Bg5 {[%emt 0:23:57]} h6 {[%emt 0:21:17] White is slightly better.} 14. Bxf6 {[%emt 0:00:00]} Qxf6 {[%emt 0:00:06]} 15. exd5 {[%emt 0:01:02]} cxd5 {[%emt 0:08:18]} 16. Bxd5 {[%emt 0:00:00]} Nf4 {[%emt 0:15:53] Prevents Nh5.} 17. Rxe5 {[%emt 0:06:51] [#]} Qg6 $146 {[%emt 0:00:00] Prevents Nh5.} (17... Ng6 $142 18. Ne4 Qb6) ({Predecessor:} 17... Ng6 18. d4 Nxe5 19. Nxe5 Bb8 20. Qe2 Bxe5 21. dxe5 Qe7 {1-0 (63) Xu,Y (2545)-Yuan,Q (2372) China 2019}) 18. d4 $16 {[%emt 0:04:49]} Bb8 {[%emt 0:00:23] [#]} 19. Bb3 $1 {[%emt 0:08:55]} Bxe5 {[%emt 0:00:39]} 20. Nxe5 {[%emt 0:01:15]} (20. dxe5 $6 Qd3 $14) 20... Qg5 {[%emt 0:02:44]} 21. Qf3 {[%emt 0:01:09]} Be6 {[%emt 0:03:41]} 22. Ne4 {[%emt 0:05:07]} Qh4 {[%emt 0:00:07]} 23. Nc5 {[%emt 0:09:20] Pair of Knights!} Qg5 {[%emt 0:06:51]} 24. Kh2 {[%emt 0:04:55] Chess con chili.} ({Not} 24. Nxb7 Nxh3+ 25. Kf1 Nf4 $16) (24. h4 $18 Qf6 25. Ned7 (25. Qxb7 Bxb3 26. axb3 Ne2+ 27. Kf1 Ng3+ 28. Ke1 Qxh4 $16) 25... Bxd7 26. Nxd7) 24... Bxb3 {[%emt 0:02:35]} 25. axb3 {[%emt 0:00:13]} Ng6 {[%emt 0:02:40]} 26. Re1 {[%emt 0:12:58]} Qd2 {[%emt 0:01:47] [#]} 27. Re2 {[%emt 0:05:34]} (27. Ned3 $1 $18) 27... Nxe5 {[%emt 0:00:05]} 28. dxe5 {[%emt 0:00:02]} ({But not} 28. Rxd2 $6 Nxf3+ 29. gxf3 Rfb8 $11) 28... Qd1 {[%emt 0:00:10]} 29. Nxb7 {[%emt 0:02:47]} Qxb3 {[%emt 0:00:15]} 30. Nd6 {[%emt 0:00:02]} Qe6 {[%emt 0:00:34]} 31. Nf5 {[%emt 0:00:42] White is much more active. The black rooks are badly placed.} (31. Qe4 $16) 31... Kh8 {[%emt 0:01:11]} 32. Nd4 {[%emt 0:03:13]} Qb6 {[%emt 0:00:13]} 33. Qg3 $40 {[%emt 0:00:51][%mdl 128] White is out for blood.} a5 {[%emt 0:00:58]} 34. f4 {[%emt 0:01:23]} Qg6 {[%emt 0:00:59]} 35. Qf3 {[%emt 0:00:25]} f5 $2 {[%emt 0:00:33][%mdl 8192] Loses the game.} (35... a4 $16) 36. e6 $18 {[%emt 0:00:23][%cal Be5e6,Be6e7][%mdl 32]} Rac8 $2 {[%emt 0:00:31]} (36... Rfe8 37. Qd5 Ra7 38. Nxf5 Qf6) 37. Re5 {[%emt 0:00:18] Hoping for e7.} a4 {[%emt 0:00:12]} 38. e7 {[%emt 0:00:50]} Rfe8 {[%emt 0:00:31]} 39. Nxf5 {[%emt 0:00:34][%cal Bd4f5,Bf5h6,Bh6g4][%mdl 32]} Qf6 {[%emt 0:00:41]} 40. Qe4 {[%emt 0:02:24] Re6 is the strong threat.} g6 {[%emt 0:00:37]} 41. Nxh6 {[%emt 0:31:53] Threatens to win with Re6.} Rc7 {[%emt 0:04:14]} 42. Ng4 {[%emt 0:00:00]} Qg7 {[%emt 0:04:43]} 43. f5 {[%emt 0:00:00]} gxf5 {[%emt 0:00:00]} 44. Rxf5 {[%emt 0:00:00]} Rcxe7 {[%emt 0:00:33]} 45. Rh5+ {[%emt 0:00:00] Weighted Error Value: White=0.19 (very precise) /Black=0.60} 1-0

[Event "44th Chess Olympiad Open 2022"]
[Site "Chennai"]
[Date "2022.08.05"]
[Round "7.32"]
[White "Draskovic, Luka"]
[Black "Makolli, Perparim"]
[Result "1-0"]
[ECO "B23"]
[WhiteElo "2503"]
[BlackElo "2247"]
[Annotator "ChessBase"]
[PlyCount "75"]
[EventDate "2022.07.29"]
[EventType "team-tourn"]
[EventCountry "IND"]
[SourceTitle "playchess.com"]
[Source "ChessBase"]
[SourceQuality "1"]
[WhiteTeam "Montenegro"]
[BlackTeam "Kosovo"]
[WhiteTeamCountry "MNE"]
[BlackTeamCountry "KOS"]
[TimeControl "40/5400+30:1800+30"]

1. e4 {[%emt 0:00:05]} c5 {[%emt 0:00:24]} 2. Nc3 {[%emt 0:00:11]} e6 {[%emt 0:00:27]} 3. Nge2 {[%emt 0:00:16]} a6 {[%emt 0:00:30]} 4. g3 {[%emt 0:01:21]} Nc6 {[%emt 0:00:53]} 5. Bg2 {[%emt 0:00:30]} Nd4 {[%emt 0:02:52]} 6. Nxd4 {[%emt 0:07:33]} cxd4 {[%emt 0:00:08]} 7. Ne2 {[%emt 0:00:04]} e5 {[%emt 0:03:50]} 8. d3 {[%emt 0:03:45]} Ne7 {[%emt 0:08:46]} 9. c3 {[%emt 0:08:58]} Nc6 {[%emt 0:00:52]} 10. cxd4 {[%emt 0:02:03]} exd4 {[%emt 0:02:29]} 11. O-O {[%emt 0:01:41]} Bc5 {[%emt 0:04:14]} 12. a3 {[%emt 0:04:44]} a5 {[%emt 0:03:34]} 13. Nf4 {[%emt 0:06:45]} O-O {[%emt 0:03:47]} 14. Nd5 {[%emt 0:10:09]} d6 {[%emt 0:02:04]} 15. f4 {[%emt 0:02:15]} f5 {[%emt 0:10:13]} 16. Bd2 {[%emt 0:09:00]} a4 {[%emt 0:02:50]} 17. Qe2 {[%emt 0:07:30]} Be6 {[%emt 0:10:23]} 18. exf5 {[%emt 0:01:44]} Bxf5 {[%emt 0:00:32]} 19. g4 {[%emt 0:01:14]} Bd7 {[%emt 0:01:11]} 20. h3 {[%emt 0:03:44]} Qh4 {[%emt 0:11:00]} 21. Qe1 {[%emt 0:09:46]} Qxe1 {[%emt 0:00:00]} 22. Raxe1 {[%emt 0:00:03]} Rae8 {[%emt 0:00:00]} 23. Be4 {[%emt 0:03:57]} Kh8 {[%emt 0:00:00]} 24. Kg2 {[%emt 0:01:10]} Rb8 {[%emt 0:02:09]} 25. Bf3 {[%emt 0:02:18]} Be8 {[%emt 0:05:17]} 26. Nc7 {[%emt 0:00:56]} Bf7 {[%emt 0:01:11]} 27. Bd5 {[%emt 0:01:19]} Bxd5+ {[%emt 0:01:46]} 28. Nxd5 {[%emt 0:00:04]} Kg8 {[%emt 0:01:59]} 29. Re6 {[%emt 0:00:49]} Rfe8 {[%emt 0:00:58]} 30. Rfe1 {[%emt 0:00:42]} Rxe6 {[%emt 0:02:30]} 31. Rxe6 {[%emt 0:00:05]} Kf7 {[%emt 0:00:13]} 32. Re4 {[%emt 0:01:00]} b5 {[%emt 0:04:23]} 33. Kf3 {[%emt 0:01:59]} Rb7 {[%emt 0:04:30]} 34. h4 {[%emt 0:01:23]} Na7 {[%emt 0:03:59]} 35. h5 {[%emt 0:02:24]} h6 {[%emt 0:01:01]} 36. g5 {[%emt 0:01:07]} hxg5 {[%emt 0:00:54]} 37. fxg5 {[%emt 0:00:04]} Nc6 {[%emt 0:00:24]} 38. g6+ {[%emt 0:01:09]} 1-0

[Event "44th Chess Olympiad Open 2022"]
[Site "Chennai"]
[Date "2022.08.05"]
[Round "7.32"]
[White "Saraci, Korab"]
[Black "Djukic, Nikola"]
[Result "0-1"]
[ECO "B22"]
[WhiteElo "2287"]
[BlackElo "2526"]
[Annotator "TA"]
[PlyCount "84"]
[EventDate "2022.07.29"]
[EventType "team-tourn"]
[EventCountry "IND"]
[SourceTitle "playchess.com"]
[Source "ChessBase"]
[SourceQuality "1"]
[WhiteTeam "Kosovo"]
[BlackTeam "Montenegro"]
[WhiteTeamCountry "KOS"]
[BlackTeamCountry "MNE"]
[TimeControl "40/5400+30:1800+30"]

{[%evp 22,84,7,0,10,-9,-8,-10,-6,-4,-4,-2,-4,-10,-9,-25,-26,-29,-22,-32,-26,-32,-20,-31,-21,-82,-85,-86,-88,-105,-68,-93,-94,-145,-143,-150,-151,-213,-186,-181,-183,-180,-177,-197,-125,-120,-66,-194,-195,-178,-185,-200,-157,-174,-140,-359,-373,-1577,-176,-163,0,-1529,-1465,-2127,-1964]} 1. e4 {[%emt 0:00:03]} c5 {[%emt 0:00:07]} 2. c3 {[%emt 0:00:04]} Nf6 {[%emt 0:00:07]} 3. e5 {[%emt 0:00:04]} Nd5 {[%emt 0:00:06]} 4. d4 {[%emt 0:00:02]} cxd4 {[%emt 0:00:09]} 5. Nf3 {[%emt 0:00:04]} d6 {[%emt 0:00:26]} 6. cxd4 {[%emt 0:00:05]} Nc6 {[%emt 0:00:15]} 7. Bc4 {[%emt 0:00:04]} Nb6 {[%emt 0:00:20]} 8. Bb5 {[%emt 0:00:04]} dxe5 {[%emt 0:00:25]} 9. Nxe5 {[%emt 0:00:04]} Bd7 {[%emt 0:00:06]} 10. Nxd7 {[%emt 0:00:06]} Qxd7 {[%emt 0:00:05]} 11. Nc3 {[%emt 0:00:32]} e6 {[%emt 0:00:13]} 12. O-O {[%emt 0:00:06]} Rd8 $1 {[%emt 0:00:22][%mdl 4] is currently scoring better than 12...Be7. B22: Sicilian: 2 c3.} 13. Bg5 {[%emt 0:08:28]} Be7 {[%emt 0:00:53]} 14. Bxe7 {[%emt 0:01:40]} Qxe7 {[%emt 0:00:07] The position is equal.} 15. Qf3 {[%emt 0:09:19]} O-O {[%emt 0:00:25]} 16. Bxc6 {[%emt 0:01:59]} bxc6 {[%emt 0:00:07]} 17. Rfd1 {[%emt 0:06:29]} Qb4 {[%emt 0:05:17][%csl LRb2,LRd4] [#]} 18. Qxc6 $146 {[%emt 0:06:56]} ({Predecessor:} 18. Rab1 Rxd4 19. Rxd4 Qxd4 20. Qxc6 h6 21. h3 {½-½ (21) Kaupat,L (806)-Popov,M (2060) LSS email 2017}) 18... Qxb2 {[%emt 0:01:57] [#] Strongly threatening ...Rc8.} 19. Na4 {[%emt 0:07:36]} Nxa4 {[%emt 0:05:49]} 20. Qxa4 {[%emt 0:00:08]} Qb7 {[%emt 0:04:52]} 21. Rdb1 {[%emt 0:10:19]} Qe7 {[%emt 0:05:37]} 22. Rb4 {[%emt 0:02:26]} g6 {[%emt 0:11:37]} 23. Qa5 {[%emt 0:09:16]} (23. g3 $11 {keeps the balance.}) 23... Rd5 $17 {[%emt 0:02:15]} 24. Qa4 {[%emt 0:01:34]} Rfd8 {[%emt 0:10:27]} 25. Re1 {[%emt 0:08:29]} Qd7 {[%emt 0:03:47][%cal Rd5d4]} 26. Re4 {[%emt 0:03:16]} e5 {[%emt 0:04:01][%cal Be6e5,Be5d4,Bd4d3][%mdl 32]} 27. Kf1 {[%emt 0:05:34]} (27. Qxd7 $142 R8xd7 28. Kf1 (28. Rb8+ Kg7 $17)) 27... Qf5 {[%emt 0:18:48]} ({Much worse is} 27... Rxd4 $6 28. Rexd4 (28. Qxd7 R4xd7 29. Rxe5 Rc8 $11) 28... exd4 29. Qxd7 Rxd7 30. Ke2 $11) 28. f3 {[%emt 0:07:58]} exd4 {[%emt 0:00:08]} 29. Rb1 {[%emt 0:07:05]} (29. Rb2 $17 {was worth a try.}) 29... Ra5 {[%emt 0:07:11]} 30. Qc4 {[%emt 0:01:50]} Rc5 {[%emt 0:11:05]} 31. Qb4 {[%emt 0:02:06]} d3 {[%emt 0:03:40] [#] White must now prevent ...d2.} 32. Rd1 {[%emt 0:00:33]} Qc8 {[%emt 0:03:54]} ({Black should try} 32... a5 $19 33. Qe1 Qd7) 33. Rd4 {[%emt 0:01:00]} Rcd5 {[%emt 0:00:58] Black is more active.} (33... Rxd4 $17 34. Qxd4 Rc2 35. Rxd3 Rxa2) 34. Rc4 {[%emt 0:01:07]} ({White must play} 34. R1xd3 $1 $15 Qa6 35. Kg1 Qxd3 36. Rxd3 Rxd3 37. h4) 34... Qe6 {[%emt 0:00:58]} 35. Re4 {[%emt 0:00:25] Inhibits Qe2+.} Qf6 $36 {[%emt 0:00:18][%mdl 2048] Black is really pushing.} 36. Rd2 {[%emt 0:00:37]} Kg7 {[%emt 0:00:21]} 37. Re3 {[%emt 0:00:37]} a5 {[%emt 0:00:19]} 38. Qe4 {[%emt 0:00:13]} (38. Qb3 $17) 38... Qc3 $19 {[%emt 0:00:30]} 39. Ke1 {[%emt 0:01:06]} (39. Rd1) 39... Qa1+ $2 {[%emt 0:01:05]} (39... R8d6 {( -> ...Re6)} 40. Qa4 Rb6) 40. Kf2 {[%emt 0:00:23]} Qc3 $2 {[%emt 0:00:11]} (40... Qb1 41. Re1 Qb6+ 42. Kf1 Qd6) 41. Ke1 $1 {[%emt 0:30:14]} R8d6 {[%emt 0:06:27]} 42. Qa4 {[%emt 0:00:00]} Qc5 {[%emt 0:01:19] Weighted Error Value: White=0.51/Black=0.43} 0-1

[Event "44th Chess Olympiad Open 2022"]
[Site "Chennai"]
[Date "2022.08.05"]
[Round "7.32"]
[White "Asllani, Muhamet"]
[Black "Blagojevic, Dragisa"]
[Result "0-1"]
[ECO "C54"]
[WhiteElo "2235"]
[BlackElo "2499"]
[Annotator "ChessBase"]
[PlyCount "74"]
[EventDate "2022.07.29"]
[EventType "team-tourn"]
[EventCountry "IND"]
[SourceTitle "playchess.com"]
[Source "ChessBase"]
[SourceQuality "1"]
[WhiteTeam "Kosovo"]
[BlackTeam "Montenegro"]
[WhiteTeamCountry "KOS"]
[BlackTeamCountry "MNE"]
[TimeControl "40/5400+30:1800+30"]

1. e4 {[%emt 0:00:10]} e5 {[%emt 0:00:07]} 2. Nf3 {[%emt 0:00:10]} Nc6 {[%emt 0:00:07]} 3. Bc4 {[%emt 0:00:13]} Bc5 {[%emt 0:01:03]} 4. c3 {[%emt 0:00:38]} Nf6 {[%emt 0:00:09]} 5. d3 {[%emt 0:02:40]} O-O {[%emt 0:04:04]} 6. b4 {[%emt 0:05:57]} Be7 {[%emt 0:03:34]} 7. b5 {[%emt 0:17:11]} Na5 {[%emt 0:00:14]} 8. Nxe5 {[%emt 0:00:31]} d5 {[%emt 0:04:46]} 9. exd5 {[%emt 0:04:39]} Nxd5 {[%emt 0:00:32]} 10. O-O {[%emt 0:02:00]} Be6 {[%emt 0:22:23]} 11. Bb3 {[%emt 0:05:08]} Nxb3 {[%emt 0:20:55]} 12. Qxb3 {[%emt 0:03:15]} Ne3 {[%emt 0:01:16]} 13. c4 {[%emt 0:01:06]} Nxf1 {[%emt 0:03:27]} 14. Kxf1 {[%emt 0:00:04]} Bf6 {[%emt 0:05:01]} 15. Bb2 {[%emt 0:02:21]} Bxe5 {[%emt 0:01:32]} 16. Bxe5 {[%emt 0:00:16]} Bf5 {[%emt 0:00:15]} 17. Kg1 {[%emt 0:11:45]} Re8 {[%emt 0:02:51]} 18. Bc3 {[%emt 0:02:02]} Qxd3 {[%emt 0:04:32]} 19. Nd2 {[%emt 0:00:13]} Be6 {[%emt 0:03:27]} 20. h3 {[%emt 0:01:13]} f6 {[%emt 0:01:13]} 21. Rc1 {[%emt 0:00:27]} Bf7 {[%emt 0:03:33]} 22. Qb4 {[%emt 0:06:36]} Re2 {[%emt 0:02:21]} 23. c5 {[%emt 0:01:59]} Rd8 {[%emt 0:02:32]} 24. Nf1 {[%emt 0:01:20]} Rc2 {[%emt 0:01:13]} 25. Rxc2 {[%emt 0:01:19]} Qxc2 {[%emt 0:00:05]} 26. Ne3 {[%emt 0:00:07]} Qxa2 {[%emt 0:02:18]} 27. Qf4 {[%emt 0:09:09]} Qb1+ {[%emt 0:01:44]} 28. Kh2 {[%emt 0:00:08]} Qd3 {[%emt 0:03:00]} 29. Ba1 {[%emt 0:04:00]} Qd7 {[%emt 0:01:22]} 30. g4 {[%emt 0:04:37]} Be6 {[%emt 0:01:06]} 31. g5 {[%emt 0:00:37]} fxg5 {[%emt 0:00:19]} 32. Qxg5 {[%emt 0:02:07]} Rf8 {[%emt 0:03:22]} 33. f4 {[%emt 0:08:38]} Qd2+ {[%emt 0:00:00]} 34. Ng2 {[%emt 0:00:03]} Rf7 {[%emt 0:00:00]} 35. b6 {[%emt 0:01:30]} axb6 {[%emt 0:00:00]} 36. cxb6 {[%emt 0:00:07]} cxb6 {[%emt 0:00:00]} 37. f5 {[%emt 0:02:37]} Qxg5 {[%emt 0:00:00]} 0-1

[Event "44th Chess Olympiad Open 2022"]
[Site "Chennai"]
[Date "2022.08.05"]
[Round "7.33"]
[White "Dardha, Daniel"]
[Black "Okeke Issac"]
[Result "1-0"]
[ECO "A18"]
[WhiteElo "2575"]
[BlackElo "2204"]
[Annotator "TA"]
[PlyCount "53"]
[EventDate "2022.07.29"]
[EventType "team-tourn"]
[EventCountry "IND"]
[SourceTitle "playchess.com"]
[Source "ChessBase"]
[SourceQuality "1"]
[WhiteTeam "Belgium"]
[BlackTeam "Nigeria"]
[WhiteTeamCountry "BEL"]
[BlackTeamCountry "NGR"]
[TimeControl "40/5400+30:1800+30"]

{[%evp 12,53,27,12,52,56,85,85,79,69,92,85,86,65,81,54,111,119,111,96,95,98,306,295,275,199,453,241,239,248,391,380,390,248,247,242,693,681,676,651,762,755,754,732]} 1. c4 {[%emt 0:00:23]} Nf6 {[%emt 0:00:56]} 2. Nc3 {[%emt 0:00:06]} e6 {[%emt 0:01:13]} 3. e4 {[%emt 0:01:10]} d5 {[%emt 0:00:58]} 4. e5 {[%emt 0:01:05]} d4 {[%emt 0:05:33]} 5. exf6 {[%emt 0:00:37]} dxc3 {[%emt 0:00:22]} 6. bxc3 {[%emt 0:00:06]} Qxf6 {[%emt 0:03:38]} 7. Nf3 {[%emt 0:00:33]} Qd8 {[%emt 0:09:23] A18: English Opening: Flohr-Mikenas System (1 c4 Nf6 2 Nc3 e6 3 e4).} 8. d4 {[%emt 0:02:02]} Be7 {[%emt 0:00:26]} 9. Bd3 {[%emt 0:00:47]} c5 {[%emt 0:05:32] White is better.} 10. O-O {[%emt 0:01:01][%cal Od4d5]} O-O {[%emt 0:05:03]} 11. Bf4 {[%emt 0:02:25] [#]} cxd4 $146 {[%emt 0:15:25]} ({Predecessor:} 11... g6 12. Rb1 Nc6 13. Be4 Bf6 14. Bxc6 bxc6 15. Qa4 cxd4 16. cxd4 Qd7 17. c5 a5 {1-0 (29) Van der Sterren,P (2535)-Spoelman,W (2183) Enschede 2003}) 12. cxd4 {[%emt 0:00:28]} Nc6 {[%emt 0:00:06]} 13. Rb1 {[%emt 0:08:31][%cal Od4d5]} b6 {[%emt 0:16:34]} ({Black should try} 13... f5 $14) 14. d5 $16 {[%emt 0:07:27]} Na5 {[%emt 0:06:56]} 15. Re1 {[%emt 0:03:30][%cal Bf1e1,Be1e3,Be3e5,Be5e8,Be8f8][%mdl 32] White is much more active. The black rooks are badly placed.} exd5 {[%emt 0:06:18]} 16. cxd5 {[%emt 0:01:19][%cal Bc4d5,Bd5d6][%mdl 32] Strongly threatening Qc2.} Bb7 $2 {[%emt 0:04:59] This costs Black the game.} (16... Bd6 $16 17. Bg5 f6) 17. d6 $18 {[%emt 0:02:12]} Bf6 {[%emt 0:00:02]} 18. Ne5 {[%emt 0:00:29] Threatens to win with Qh5.} Rc8 $2 {[%emt 0:04:11]} (18... g6 19. Bb5 Bg5) 19. Qg4 {[%emt 0:05:54]} (19. Qh5 g6 20. Qh3 Rc5 $16) (19. d7 $142 Rc5 20. Rb5 (20. Qh5 g6 $16) 20... Bxe5 21. Bxe5 (21. Rxe5 Rxe5 22. Rxe5 Bc6 $18)) 19... Rc5 {[%emt 0:08:04]} 20. Re3 {[%emt 0:13:49][%cal Od3h7] aiming for Bxh7+!} Rxe5 {[%emt 0:03:56]} (20... Bxe5 $142 21. Rxe5 (21. Bxe5 Rxe5 22. Rxe5 Qxd6 $18) 21... Bc8) 21. Bxe5 {[%emt 0:06:47]} Bxe5 {[%emt 0:00:27]} 22. Rxe5 {[%emt 0:02:54]} Qxd6 {[%emt 0:00:25]} 23. Qg3 $40 {[%emt 0:04:02][%mdl 128] White goes for the king.} ({Not} 23. Bxh7+ Kxh7 24. Qh3+ (24. Rxa5 bxa5 25. Rxb7 Kg8 $11) 24... Kg8 $16) 23... Nc6 $2 {[%emt 0:01:00] [#]} (23... Qc6 24. Rbe1 g6) 24. Bxh7+ $1 {[%emt 0:00:59][%mdl 512] White is clearly winning.} Kh8 {[%emt 0:00:27] [#]} 25. Re8 {[%emt 0:01:08][%mdl 512]} Qxg3 {[%emt 0:00:38]} (25... Kxh7 26. Qxd6) 26. Rxf8+ {[%emt 0:00:10]} Kxh7 {[%emt 0:00:12]} 27. hxg3 {[%emt 0:00:04] Weighted Error Value: White=0.29 (precise) /Black=0.56} 1-0

[Event "44th Chess Olympiad Open 2022"]
[Site "Chennai"]
[Date "2022.08.05"]
[Round "7.33"]
[White "Lenaerts, Lennert"]
[Black "Kigigha, Bomo"]
[Result "1-0"]
[ECO "B33"]
[WhiteElo "2379"]
[BlackElo "2251"]
[Annotator "TA"]
[PlyCount "89"]
[EventDate "2022.07.29"]
[EventType "team-tourn"]
[EventCountry "IND"]
[SourceTitle "playchess.com"]
[Source "ChessBase"]
[SourceQuality "1"]
[WhiteTeam "Belgium"]
[BlackTeam "Nigeria"]
[WhiteTeamCountry "BEL"]
[BlackTeamCountry "NGR"]
[TimeControl "40/5400+30:1800+30"]

{[%evp 17,89,41,52,40,48,40,52,12,92,62,158,101,307,232,248,229,420,404,524,408,700,593,593,485,642,383,673,680,922,918,1126,1151,1091,1079,1358,1355,1352,1341,1328,1233,1180,1270,1268,1219,1166,979,956,946,911,893,1236,1214,1437,1310,2033,2204,2113,2205,1890,1660,1580,1413,1343,1323,29979,29980,29980,29981,29981,29981,29981,29982,29981,29981]} 1. e4 {[%emt 0:00:03]} c5 {[%emt 0:00:08]} 2. Nf3 {[%emt 0:00:19]} Nc6 {[%emt 0:00:07]} 3. d4 {[%emt 0:00:48]} cxd4 {[%emt 0:00:21]} 4. Nxd4 {[%emt 0:00:10]} Qb6 {[%emt 0:01:26]} 5. Nb3 {[%emt 0:00:31]} Nf6 {[%emt 0:00:06]} 6. Nc3 {[%emt 0:00:06]} e6 {[%emt 0:00:04]} 7. Be3 {[%emt 0:00:14]} Qc7 {[%emt 0:00:09]} 8. a3 {[%emt 0:00:43]} a6 {[%emt 0:00:05]} 9. f4 {[%emt 0:00:17]} d6 {[%emt 0:00:08]} 10. g4 {[%emt 0:00:05][%cal Bg2g4,Bg4g5][%mdl 32] is the new trend. B33: Sicilian: Pelikan and Sveshnikov Variations.} h6 {[%emt 0:01:41][%cal Od6d5]} 11. Bg2 {[%emt 0:03:09]} b5 {[%emt 0:02:44] [#]} 12. h4 $146 {[%emt 0:05:35] White is slightly better.} ({Predecessor:} 12. Qe2 Bb7 13. O-O-O b4 14. axb4 Nxb4 15. h4 h5 16. g5 Ng4 17. Bg1 g6 18. Bd4 {1-0 (38) Samunenkov,I (2428)-Gulevich,A (2304) Chess.com INT 2022}) 12... Bb7 {[%emt 0:10:10]} (12... b4 $11 {keeps the balance.} 13. axb4 Nxb4) 13. g5 {[%emt 0:00:00]} Ng8 {[%emt 0:05:04]} (13... hxg5 $14 14. hxg5 Rxh1+ 15. Bxh1 Nd7) 14. f5 {[%emt 0:15:38] White is more active.} ({White should play} 14. Qd2) 14... d5 $2 {[%emt 0:15:35] [#]} (14... hxg5 $16 {was necessary.} 15. hxg5 Rxh1+ 16. Bxh1 Ne5) 15. exd5 {[%emt 0:04:59]} Qg3+ {[%emt 0:06:08]} 16. Kf1 {[%emt 0:00:57]} O-O-O $2 {[%emt 0:07:06]} (16... Qxe3 17. dxc6 Qf4+ 18. Qf3 (18. Kg1 Qe3+ 19. Kf1 Qf4+ 20. Qf3 Qxf3+ 21. Bxf3 Bc8 $18) 18... Qxf3+ 19. Bxf3 Bc8) 17. Rh3 $18 {[%emt 0:11:01] Really sharp!} ({Weaker is} 17. dxc6 Rxd1+ 18. Nxd1 (18. Rxd1 Bxc6 19. Bxc6 Qxe3 $17) 18... Ba8 19. fxe6 fxe6 $15) 17... Qe5 {[%emt 0:01:21]} 18. Qf3 {[%emt 0:04:06]} Nce7 {[%emt 0:08:23]} (18... exd5 $142 19. Nxd5 hxg5 20. Bxg5 Rxd5) 19. fxe6 {[%emt 0:02:40]} Nxd5 {[%emt 0:00:44]} 20. exf7 {[%emt 0:06:31]} Nge7 {[%emt 0:02:38]} 21. Bd4 {[%emt 0:05:56]} Qd6 {[%emt 0:07:57]} (21... Qf5 22. Qxf5+ Nxf5) 22. Re1 {[%emt 0:01:55]} Rd7 {[%emt 0:07:19]} 23. Nc5 {[%emt 0:05:03]} Nxc3 {[%emt 0:02:30]} 24. Qxb7+ {[%emt 0:09:12]} Rxb7 {[%emt 0:00:21]} 25. Bxb7+ {[%emt 0:00:05] A strong pair of Bishops.} Kd8 {[%emt 0:01:46]} 26. Ne6+ {[%emt 0:03:39]} Kd7 {[%emt 0:00:21]} 27. Bxc3 {[%emt 0:04:03]} Qxe6 {[%emt 0:17:25]} 28. Rd3+ {[%emt 0:00:47]} Qd6 {[%emt 0:01:56]} 29. Rxd6+ {[%emt 0:00:06]} Kxd6 {[%emt 0:00:40]} 30. Bb4+ {[%emt 0:00:06]} Kd7 {[%emt 0:00:34]} 31. Bxa6 {[%emt 0:00:02]} hxg5 {[%emt 0:00:28]} 32. Bxb5+ {[%emt 0:00:13]} Kd8 {[%emt 0:00:29]} 33. hxg5 {[%emt 0:00:05]} Rh1+ {[%emt 0:00:33]} 34. Kg2 {[%emt 0:01:18]} Rxe1 {[%emt 0:00:23]} 35. Bxe1 {[%emt 0:00:02][%mdl 4096] Endgame KBB-KBN} Nd5 {[%emt 0:00:36]} 36. Ba5+ {[%emt 0:00:25]} Ke7 {[%emt 0:00:28]} 37. Kf3 {[%emt 0:00:08]} Kd6 {[%emt 0:00:31]} 38. Bc4 {[%emt 0:00:31] [#] Threatening mate with Bxd5.} Ne7 {[%emt 0:00:12]} 39. Ke4 {[%emt 0:00:27]} Kc5 {[%emt 0:00:05]} 40. Ba2 {[%emt 0:00:30]} Nc6 {[%emt 0:00:07]} 41. Bb4+ {[%emt 0:31:36] White mates.} Nxb4 {[%emt 0:09:16]} 42. axb4+ {[%emt 0:00:00]} Kxb4 {[%emt 0:03:48]} 43. Kf5 {[%emt 0:00:00]} Kc5 {[%emt 0:02:56]} 44. Kg6 {[%emt 0:00:00]} Kd6 {[%emt 0:09:55]} 45. Kh7 {[%emt 0:00:00] White took control after the opening.  Weighted Error Value: White=0.63/Black=1.20} 1-0